[Event "Titled Tuesday Blitz March 29 Early 2022"]
[White "Omelja, Artem"]
[Black "Shvedova, Alexandra"]
[WhiteFideId "14119846"]
[BlackFideId "54154782"]
[WhiteElo "2382"]
[BlackElo "1912"]
[Result "1-0"]
[Round "10"]
[TimeControl "180+1"]
[Date "2022.03.30"]
[WhiteClock "0:00:13"]
[BlackClock "0:00:13"]

1. d4 {[%clk 0:03:00]}  Nf6 {[%clk 0:02:56]} 2. c4 {[%clk 0:03:00]}  e6 {[%clk 0:02:54]} 3. Nf3 {[%clk 0:02:59]}  d5 {[%clk 0:02:55]} 4. Nc3 {[%clk 0:02:59]}  dxc4 {[%clk 0:02:54]} 5. e3 {[%clk 0:02:53]}  a6 {[%clk 0:02:54]} 6. Bxc4 {[%clk 0:02:54]}  b5 {[%clk 0:02:54]} 7. Be2 {[%clk 0:02:48]}  Bb7 {[%clk 0:02:54]} 8. O-O {[%clk 0:02:48]}  Nbd7 {[%clk 0:02:54]} 9. a3 {[%clk 0:02:44]}  c5 {[%clk 0:02:54]} 10. dxc5 {[%clk 0:02:44]}  Bxc5 {[%clk 0:02:54]} 11. b4 {[%clk 0:02:44]}  Be7 {[%clk 0:02:54]} 12. Bb2 {[%clk 0:02:44]}  O-O {[%clk 0:02:54]} 13. Qb3 {[%clk 0:02:43]}  Rc8 {[%clk 0:02:51]} 14. Rfd1 {[%clk 0:02:42]}  Qc7 {[%clk 0:02:51]} 15. Rac1 {[%clk 0:02:40]}  Qb8 {[%clk 0:02:50]} 16. Nd4 {[%clk 0:02:35]}  Rfd8 {[%clk 0:02:46]} 17. a4 {[%clk 0:02:14]}  bxa4 {[%clk 0:02:38]} 18. Qxa4 {[%clk 0:02:15]}  Nb6 {[%clk 0:02:35]} 19. Qa3 {[%clk 0:02:05]}  Nc4 {[%clk 0:02:30]} 20. Qb3 {[%clk 0:01:59]}  Nxb2 {[%clk 0:02:28]} 21. Qxb2 {[%clk 0:02:00]}  Bd6 {[%clk 0:02:03]} 22. h3 {[%clk 0:01:56]}  h6 {[%clk 0:02:01]} 23. Ra1 {[%clk 0:01:51]}  Nd5 {[%clk 0:01:42]} 24. Nxd5 {[%clk 0:01:45]}  exd5 {[%clk 0:01:36]} 25. Bxa6 {[%clk 0:01:30]}  Bxa6 {[%clk 0:01:37]} 26. Rxa6 {[%clk 0:01:30]}  Qb7 {[%clk 0:01:24]} 27. Rda1 {[%clk 0:01:12]}  Bxb4 {[%clk 0:01:06]} 28. Ra7 {[%clk 0:00:56]}  Qb6 {[%clk 0:00:52]} 29. Nf5 {[%clk 0:00:38]}  d4 {[%clk 0:00:40]} 30. Nxd4 {[%clk 0:00:30]}  Bc5 {[%clk 0:00:35]} 31. Qxb6 {[%clk 0:00:21]}  Bxb6 {[%clk 0:00:36]} 32. R7a4 {[%clk 0:00:21]}  Bxd4 {[%clk 0:00:36]} 33. Rxd4 {[%clk 0:00:21]}  Rxd4 {[%clk 0:00:35]} 34. exd4 {[%clk 0:00:22]}  Kf8 {[%clk 0:00:31]} 35. g3 {[%clk 0:00:19]}  Ke7 {[%clk 0:00:28]} 36. Kg2 {[%clk 0:00:19]}  Ke6 {[%clk 0:00:26]} 37. Ra6+ {[%clk 0:00:15]}  Kd5 {[%clk 0:00:25]} 38. Ra7 {[%clk 0:00:14]}  Rf8 {[%clk 0:00:20]} 39. Rd7+ {[%clk 0:00:11]}  Ke6 {[%clk 0:00:20]} 40. Ra7 {[%clk 0:00:09]}  Rd8 {[%clk 0:00:20]} 41. Ra4 {[%clk 0:00:08]}  Kd5 {[%clk 0:00:19]} 42. Kf3 {[%clk 0:00:08]}  g6 {[%clk 0:00:18]} 43. Ra7 {[%clk 0:00:06]}  Ke6 {[%clk 0:00:16]} 44. Ke4 {[%clk 0:00:05]}  f5+ {[%clk 0:00:16]} 45. Ke3 {[%clk 0:00:05]}  Kf6 {[%clk 0:00:15]} 46. Ra6+ {[%clk 0:00:05]}  Kf7 {[%clk 0:00:15]} 47. h4 {[%clk 0:00:05]}  g5 {[%clk 0:00:14]} 48. hxg5 {[%clk 0:00:04]}  hxg5 {[%clk 0:00:15]} 49. Kd3 {[%clk 0:00:04]}  Rd7 {[%clk 0:00:12]} 50. f4 {[%clk 0:00:03]}  gxf4 {[%clk 0:00:12]} 51. gxf4 {[%clk 0:00:04]}  Rb7 {[%clk 0:00:08]} 52. Kc4 {[%clk 0:00:03]}  Rc7+ {[%clk 0:00:08]} 53. Kd5 {[%clk 0:00:03]}  Rb7 {[%clk 0:00:07]} 54. Ke5 {[%clk 0:00:04]}  Rb4 {[%clk 0:00:05]} 55. Ra7+ {[%clk 0:00:03]}  Ke8 {[%clk 0:00:05]} 56. Ke6 {[%clk 0:00:02]}  Rxd4 {[%clk 0:00:03]} 57. Ra8+ {[%clk 0:00:01]}  Rd8 {[%clk 0:00:03]} 58. Rxd8+ {[%clk 0:00:02]}  Kxd8 {[%clk 0:00:04]} 59. Kxf5 {[%clk 0:00:03]}  Ke7 {[%clk 0:00:03]} 60. Ke5 {[%clk 0:00:03]}  Kf7 {[%clk 0:00:03]} 61. Kf5 {[%clk 0:00:03]}  Kg7 {[%clk 0:00:04]} 62. Ke6 {[%clk 0:00:04]}  Kg8 {[%clk 0:00:04]} 63. Ke7 {[%clk 0:00:04]}  Kg7 {[%clk 0:00:04]} 64. f5 {[%clk 0:00:05]}  Kh6 {[%clk 0:00:05]} 65. f6 {[%clk 0:00:05]}  Kg6 {[%clk 0:00:05]} 66. f7 {[%clk 0:00:06]}  Kf5 {[%clk 0:00:06]} 67. f8=Q+ {[%clk 0:00:06]}  Ke5 {[%clk 0:00:07]} 68. Qf6+ {[%clk 0:00:07]}  Kd5 {[%clk 0:00:08]} 69. Qe6+ {[%clk 0:00:08]}  Kd4 {[%clk 0:00:09]} 70. Kf6 {[%clk 0:00:09]}  Kc5 {[%clk 0:00:09]} 71. Ke5 {[%clk 0:00:10]}  Kb5 {[%clk 0:00:10]} 72. Qd5+ {[%clk 0:00:10]}  Kb4 {[%clk 0:00:11]} 73. Kd4 {[%clk 0:00:11]}  Ka4 {[%clk 0:00:11]} 74. Qc5 {[%clk 0:00:12]}  Kb3 {[%clk 0:00:11]} 75. Kd3 {[%clk 0:00:12]}  Ka2 {[%clk 0:00:12]} 76. Qb4 {[%clk 0:00:11]}  Ka1 {[%clk 0:00:12]} 77. Kc2 {[%clk 0:00:12]}  Ka2 {[%clk 0:00:13]} 78. Qa4# {[%clk 0:00:13]} 1-0


[Site "https://www.chess.com"]

[Event "Titled Tuesday Blitz March 29 Early 2022"]
[White "Perez Gormaz, Matias"]
[Black "Le Ruyet, Leopold"]
[WhiteFideId "3406342"]
[BlackFideId "645923"]
[WhiteElo "2327"]
[BlackElo "2276"]
[Result "0-1"]
[Round "10"]
[TimeControl "180+1"]
[Date "2022.03.30"]
[WhiteClock "0:00:16"]
[BlackClock "0:00:12"]

1. e4 {[%clk 0:03:00]}  e6 {[%clk 0:02:59]} 2. d4 {[%clk 0:03:00]}  d5 {[%clk 0:03:00]} 3. Nc3 {[%clk 0:03:01]}  Bb4 {[%clk 0:02:59]} 4. Ne2 {[%clk 0:02:59]}  Nf6 {[%clk 0:02:59]} 5. e5 {[%clk 0:02:57]}  Nfd7 {[%clk 0:02:59]} 6. a3 {[%clk 0:02:58]}  Be7 {[%clk 0:02:57]} 7. f4 {[%clk 0:02:55]}  c5 {[%clk 0:02:57]} 8. Be3 {[%clk 0:02:56]}  Nc6 {[%clk 0:02:57]} 9. Qd2 {[%clk 0:02:56]}  a6 {[%clk 0:02:57]} 10. dxc5 {[%clk 0:02:55]}  Nxc5 {[%clk 0:02:54]} 11. b4 {[%clk 0:02:52]}  Nd7 {[%clk 0:02:50]} 12. Nd4 {[%clk 0:02:52]}  Nxd4 {[%clk 0:02:42]} 13. Bxd4 {[%clk 0:02:52]}  Nb8 {[%clk 0:02:43]} 14. Bd3 {[%clk 0:02:50]}  Nc6 {[%clk 0:02:42]} 15. Bf2 {[%clk 0:02:51]}  g5 {[%clk 0:02:37]} 16. O-O {[%clk 0:02:44]}  gxf4 {[%clk 0:02:18]} 17. Rae1 {[%clk 0:02:29]}  Bg5 {[%clk 0:02:17]} 18. Bc5 {[%clk 0:02:26]}  b6 {[%clk 0:02:07]} 19. Bd6 {[%clk 0:02:24]}  f6 {[%clk 0:01:54]} 20. b5 {[%clk 0:01:08]}  Nxe5 {[%clk 0:01:53]} 21. Bxe5 {[%clk 0:01:09]}  fxe5 {[%clk 0:01:53]} 22. Rxe5 {[%clk 0:01:10]}  O-O {[%clk 0:01:20]} 23. Qe2 {[%clk 0:00:40]}  Qf6 {[%clk 0:01:14]} 24. h4 {[%clk 0:00:28]}  Bh6 {[%clk 0:00:59]} 25. Rh5 {[%clk 0:00:25]}  Bd7 {[%clk 0:00:45]} 26. bxa6 {[%clk 0:00:24]}  Be8 {[%clk 0:00:41]} 27. Re5 {[%clk 0:00:20]}  Bg7 {[%clk 0:00:40]} 28. Re1 {[%clk 0:00:18]}  Qxe5 {[%clk 0:00:35]} 29. Qxe5 {[%clk 0:00:19]}  Bxe5 {[%clk 0:00:35]} 30. Rxe5 {[%clk 0:00:19]}  Bg6 {[%clk 0:00:33]} 31. Bb5 {[%clk 0:00:17]}  f3 {[%clk 0:00:31]} 32. gxf3 {[%clk 0:00:13]}  Rxf3 {[%clk 0:00:30]} 33. Na4 {[%clk 0:00:13]}  Rxa3 {[%clk 0:00:27]} 34. Nxb6 {[%clk 0:00:14]}  R8xa6 {[%clk 0:00:18]} 35. Bxa6 {[%clk 0:00:15]}  Rxa6 {[%clk 0:00:17]} 36. Rxe6 {[%clk 0:00:15]}  Bxc2 {[%clk 0:00:16]} 37. Rd6 {[%clk 0:00:13]}  Be4 {[%clk 0:00:16]} 38. Kf2 {[%clk 0:00:12]}  Kf7 {[%clk 0:00:15]} 39. Ke3 {[%clk 0:00:12]}  Ra3+ {[%clk 0:00:15]} 40. Kd4 {[%clk 0:00:09]}  Rh3 {[%clk 0:00:15]} 41. Nxd5 {[%clk 0:00:07]}  Rxh4 {[%clk 0:00:15]} 42. Ne3 {[%clk 0:00:07]}  Bg6+ {[%clk 0:00:15]} 43. Ke5 {[%clk 0:00:07]}  Re4+ {[%clk 0:00:15]} 44. Kd5 {[%clk 0:00:07]}  Rxe3 {[%clk 0:00:15]} 45. Rd7+ {[%clk 0:00:08]}  Kf6 {[%clk 0:00:14]} 46. Ra7 {[%clk 0:00:09]}  Rd3+ {[%clk 0:00:14]} 47. Kc4 {[%clk 0:00:09]}  Rd1 {[%clk 0:00:12]} 48. Kc3 {[%clk 0:00:09]}  h5 {[%clk 0:00:12]} 49. Ra6+ {[%clk 0:00:10]}  Kg5 {[%clk 0:00:11]} 50. Ra5+ {[%clk 0:00:11]}  Bf5 {[%clk 0:00:11]} 51. Ra6 {[%clk 0:00:12]}  h4 {[%clk 0:00:11]} 52. Ra8 {[%clk 0:00:13]}  h3 {[%clk 0:00:11]} 53. Rg8+ {[%clk 0:00:14]}  Kf4 {[%clk 0:00:12]} 54. Rh8 {[%clk 0:00:14]}  Bg4 {[%clk 0:00:12]} 55. Kc2 {[%clk 0:00:14]}  Kg3 {[%clk 0:00:12]} 56. Rg8 {[%clk 0:00:14]}  Rg1 {[%clk 0:00:13]} 57. Rh8 {[%clk 0:00:15]}  h2 {[%clk 0:00:13]} 58. Kd2 {[%clk 0:00:15]}  h1=Q {[%clk 0:00:13]} 59. Ra8 {[%clk 0:00:16]}  Qxa8 {[%clk 0:00:12]} 0-1


[Site "https://www.chess.com"]

[Event "Titled Tuesday Blitz March 29 Early 2022"]
[White "Posthuma, Joshua"]
[Black "Zemlyanskii, Ivan"]
[WhiteFideId "2096889"]
[BlackFideId "24249971"]
[WhiteElo "2176"]
[BlackElo "1759"]
[Result "1-0"]
[Round "10"]
[TimeControl "180+1"]
[Date "2022.03.29"]
[WhiteClock "0:00:18"]
[BlackClock "0:00:50"]

1. e4 {[%clk 0:03:00]}  c5 {[%clk 0:02:59]} 2. Nf3 {[%clk 0:03:00]}  e6 {[%clk 0:02:59]} 3. d4 {[%clk 0:03:00]}  cxd4 {[%clk 0:03:00]} 4. Nxd4 {[%clk 0:03:01]}  Nf6 {[%clk 0:03:00]} 5. Nc3 {[%clk 0:03:01]}  Nc6 {[%clk 0:03:01]} 6. Qd3 {[%clk 0:02:50]}  d5 {[%clk 0:02:55]} 7. exd5 {[%clk 0:02:47]}  exd5 {[%clk 0:02:54]} 8. Bg5 {[%clk 0:02:41]}  Bc5 {[%clk 0:02:52]} 9. Nf3 {[%clk 0:01:58]}  O-O {[%clk 0:02:47]} 10. O-O-O {[%clk 0:01:53]}  Be6 {[%clk 0:02:41]} 11. Bxf6 {[%clk 0:01:37]}  Qxf6 {[%clk 0:02:39]} 12. Nxd5 {[%clk 0:01:35]}  Qh6+ {[%clk 0:02:18]} 13. Qd2 {[%clk 0:01:36]}  Bxf2 {[%clk 0:02:01]} 14. Qxh6 {[%clk 0:01:29]}  gxh6 {[%clk 0:02:01]} 15. Bb5 {[%clk 0:01:07]}  Rad8 {[%clk 0:01:53]} 16. Bxc6 {[%clk 0:00:58]}  bxc6 {[%clk 0:01:49]} 17. Ne7+ {[%clk 0:00:58]}  Kg7 {[%clk 0:01:50]} 18. Nxc6 {[%clk 0:00:53]}  Rc8 {[%clk 0:01:48]} 19. Ncd4 {[%clk 0:00:53]}  Bg4 {[%clk 0:01:32]} 20. Rhf1 {[%clk 0:00:51]}  Be3+ {[%clk 0:01:29]} 21. Kb1 {[%clk 0:00:52]}  Bh5 {[%clk 0:01:29]} 22. Nf5+ {[%clk 0:00:51]}  Kf6 {[%clk 0:01:23]} 23. Nxe3 {[%clk 0:00:52]}  Rfe8 {[%clk 0:01:22]} 24. Nd5+ {[%clk 0:00:50]}  Kg7 {[%clk 0:01:21]} 25. g4 {[%clk 0:00:49]}  Bg6 {[%clk 0:01:18]} 26. Rd2 {[%clk 0:00:43]}  Red8 {[%clk 0:01:11]} 27. Nh4 {[%clk 0:00:31]}  Be4 {[%clk 0:01:06]} 28. Nf5+ {[%clk 0:00:32]}  Kh8 {[%clk 0:01:04]} 29. Nfe7 {[%clk 0:00:28]}  Rc5 {[%clk 0:01:01]} 30. Nf6 {[%clk 0:00:20]}  Rxd2 {[%clk 0:00:49]} 31. Nxe4 {[%clk 0:00:20]}  Rcxc2 {[%clk 0:00:50]} 32. Nxd2 {[%clk 0:00:20]}  Rxd2 {[%clk 0:00:51]} 33. Rxf7 {[%clk 0:00:19]}  Rxh2 {[%clk 0:00:51]} 34. Nf5 {[%clk 0:00:18]}  h5 {[%clk 0:00:50]} 35. Rf8# {[%clk 0:00:18]} 1-0


[Site "https://www.chess.com"]

[Event "Titled Tuesday Blitz March 29 Early 2022"]
[White "Prohorov, Olexandr"]
[Black "Schut, Han"]
[WhiteFideId "14105578"]
[BlackFideId "1005561"]
[WhiteElo "1993"]
[BlackElo "2057"]
[Result "1-0"]
[Round "10"]
[TimeControl "180+1"]
[Date "2022.03.30"]
[WhiteClock "0:00:54"]
[BlackClock "0:00:23"]

1. e4 {[%clk 0:03:00]}  c5 {[%clk 0:02:51]} 2. c3 {[%clk 0:03:00]}  g6 {[%clk 0:02:51]} 3. d4 {[%clk 0:02:58]}  cxd4 {[%clk 0:02:52]} 4. cxd4 {[%clk 0:02:59]}  d5 {[%clk 0:02:52]} 5. e5 {[%clk 0:02:58]}  Nc6 {[%clk 0:02:52]} 6. Nf3 {[%clk 0:02:57]}  Bg4 {[%clk 0:02:52]} 7. Nbd2 {[%clk 0:02:57]}  Nh6 {[%clk 0:02:45]} 8. h3 {[%clk 0:02:54]}  Bxf3 {[%clk 0:02:36]} 9. Nxf3 {[%clk 0:02:55]}  f6 {[%clk 0:02:26]} 10. Bf4 {[%clk 0:02:26]}  fxe5 {[%clk 0:02:09]} 11. dxe5 {[%clk 0:02:26]}  e6 {[%clk 0:02:02]} 12. Bd3 {[%clk 0:02:16]}  Bb4+ {[%clk 0:01:56]} 13. Kf1 {[%clk 0:02:05]}  Nf7 {[%clk 0:01:48]} 14. Rc1 {[%clk 0:01:59]}  O-O {[%clk 0:01:46]} 15. h4 {[%clk 0:01:57]}  Be7 {[%clk 0:01:41]} 16. Qd2 {[%clk 0:01:51]}  Rc8 {[%clk 0:01:35]} 17. h5 {[%clk 0:01:47]}  g5 {[%clk 0:01:33]} 18. Bb1 {[%clk 0:01:30]}  gxf4 {[%clk 0:00:40]} 19. Qd3 {[%clk 0:01:18]}  Re8 {[%clk 0:00:38]} 20. Qxh7+ {[%clk 0:01:14]}  Kf8 {[%clk 0:00:39]} 21. Bg6 {[%clk 0:01:06]}  Ncxe5 {[%clk 0:00:23]} 22. Nxe5 {[%clk 0:01:06]}  Nxe5 {[%clk 0:00:23]} 23. Qh8# {[%clk 0:00:54]} 1-0


[Site "https://www.chess.com"]

[Event "Titled Tuesday Blitz March 29 Early 2022"]
[White "Quirke, Jeffrey"]
[Black "Shtyka, Sergey"]
[WhiteFideId "2013029"]
[BlackFideId "4138465"]
[WhiteElo "2171"]
[BlackElo "2014"]
[Result "0-1"]
[Round "10"]
[TimeControl "180+1"]
[Date "2022.03.30"]
[WhiteClock "0:00:13"]
[BlackClock "0:00:49"]

1. c4 {[%clk 0:03:00]}  c5 {[%clk 0:02:50]} 2. Nf3 {[%clk 0:03:00]}  Nc6 {[%clk 0:02:49]} 3. Nc3 {[%clk 0:02:59]}  g6 {[%clk 0:02:50]} 4. e3 {[%clk 0:03:00]}  Bg7 {[%clk 0:02:49]} 5. d4 {[%clk 0:03:00]}  cxd4 {[%clk 0:02:50]} 6. exd4 {[%clk 0:03:00]}  d6 {[%clk 0:02:50]} 7. Be2 {[%clk 0:02:59]}  Nf6 {[%clk 0:02:50]} 8. O-O {[%clk 0:02:58]}  O-O {[%clk 0:02:50]} 9. h3 {[%clk 0:02:56]}  a6 {[%clk 0:02:50]} 10. Be3 {[%clk 0:02:55]}  Rb8 {[%clk 0:02:48]} 11. Rc1 {[%clk 0:02:46]}  d5 {[%clk 0:02:47]} 12. Ne5 {[%clk 0:02:35]}  dxc4 {[%clk 0:02:34]} 13. Bxc4 {[%clk 0:02:34]}  Nxe5 {[%clk 0:02:24]} 14. dxe5 {[%clk 0:02:32]}  Qxd1 {[%clk 0:02:18]} 15. Rfxd1 {[%clk 0:02:31]}  Nd7 {[%clk 0:02:04]} 16. f4 {[%clk 0:02:28]}  e6 {[%clk 0:01:56]} 17. Ne4 {[%clk 0:02:24]}  b5 {[%clk 0:01:54]} 18. Bb3 {[%clk 0:02:22]}  Nb6 {[%clk 0:01:51]} 19. Nd6 {[%clk 0:02:04]}  Nd5 {[%clk 0:01:36]} 20. Bd2 {[%clk 0:01:43]}  Bd7 {[%clk 0:01:21]} 21. g3 {[%clk 0:01:32]}  f6 {[%clk 0:01:20]} 22. exf6 {[%clk 0:00:49]}  Bxf6 {[%clk 0:01:18]} 23. Ba5 {[%clk 0:00:38]}  Bxb2 {[%clk 0:01:14]} 24. Rc2 {[%clk 0:00:37]}  Bf6 {[%clk 0:01:02]} 25. Ne4 {[%clk 0:00:28]}  Bg7 {[%clk 0:00:54]} 26. Bxd5 {[%clk 0:00:15]}  exd5 {[%clk 0:00:54]} 27. Rxd5 {[%clk 0:00:16]}  Bxh3 {[%clk 0:00:50]} 28. Rd7 {[%clk 0:00:13]}  Bxd7 {[%clk 0:00:49]} 0-1


[Site "https://www.chess.com"]

[Event "Titled Tuesday Blitz March 29 Early 2022"]
[White "Ravi, Teja S."]
[Black "Kouskoutis, Georgios-Alexandros"]
[WhiteFideId "5017220"]
[BlackFideId "4234049"]
[WhiteElo "2412"]
[BlackElo "2130"]
[Result "1-0"]
[Round "10"]
[TimeControl "180+1"]
[Date "2022.03.30"]
[WhiteClock "0:01:25"]
[BlackClock "0:00:03"]

1. e4 {[%clk 0:03:00]}  c5 {[%clk 0:02:46]} 2. Nf3 {[%clk 0:03:00]}  e6 {[%clk 0:02:45]} 3. d4 {[%clk 0:02:51]}  cxd4 {[%clk 0:02:46]} 4. Qxd4 {[%clk 0:02:51]}  Nc6 {[%clk 0:02:46]} 5. Qe3 {[%clk 0:02:51]}  b6 {[%clk 0:02:19]} 6. Be2 {[%clk 0:02:50]}  Bb7 {[%clk 0:02:16]} 7. O-O {[%clk 0:02:50]}  Nf6 {[%clk 0:02:16]} 8. h3 {[%clk 0:02:50]}  Bc5 {[%clk 0:02:11]} 9. Qg5 {[%clk 0:02:47]}  Nxe4 {[%clk 0:02:03]} 10. Qxg7 {[%clk 0:02:44]}  Qf6 {[%clk 0:02:00]} 11. Qxf6 {[%clk 0:02:35]}  Nxf6 {[%clk 0:02:01]} 12. c3 {[%clk 0:02:32]}  O-O {[%clk 0:01:38]} 13. Bh6 {[%clk 0:02:26]}  Rfe8 {[%clk 0:01:35]} 14. Nbd2 {[%clk 0:02:27]}  Kh8 {[%clk 0:01:35]} 15. Nb3 {[%clk 0:02:25]}  Be7 {[%clk 0:01:28]} 16. Ng5 {[%clk 0:02:21]}  Kg8 {[%clk 0:01:21]} 17. c4 {[%clk 0:02:15]}  Rac8 {[%clk 0:01:04]} 18. Rfd1 {[%clk 0:02:10]}  Ne5 {[%clk 0:00:54]} 19. Rac1 {[%clk 0:02:09]}  d5 {[%clk 0:00:51]} 20. cxd5 {[%clk 0:02:06]}  Bxd5 {[%clk 0:00:52]} 21. Ba6 {[%clk 0:02:01]}  Rxc1 {[%clk 0:00:45]} 22. Rxc1 {[%clk 0:02:02]}  Bf8 {[%clk 0:00:38]} 23. Bxf8 {[%clk 0:01:58]}  Kxf8 {[%clk 0:00:37]} 24. Nd4 {[%clk 0:01:45]}  h6 {[%clk 0:00:35]} 25. f4 {[%clk 0:01:42]}  hxg5 {[%clk 0:00:17]} 26. fxe5 {[%clk 0:01:41]}  Nd7 {[%clk 0:00:18]} 27. Bb5 {[%clk 0:01:41]}  Rd8 {[%clk 0:00:14]} 28. Re1 {[%clk 0:01:33]}  Bxa2 {[%clk 0:00:08]} 29. Nc6 {[%clk 0:01:32]}  Ra8 {[%clk 0:00:05]} 30. Nb4 {[%clk 0:01:31]}  Nc5 {[%clk 0:00:02]} 31. Nxa2 {[%clk 0:01:30]}  a6 {[%clk 0:00:03]} 32. Bf1 {[%clk 0:01:28]}  Rd8 {[%clk 0:00:03]} 33. Nb4 {[%clk 0:01:28]}  a5 {[%clk 0:00:03]} 34. Na6 {[%clk 0:01:26]}  Rd2 {[%clk 0:00:03]} 35. Nxc5 {[%clk 0:01:26]}  bxc5 {[%clk 0:00:04]} 36. Re2 {[%clk 0:01:26]}  Rd1 {[%clk 0:00:04]} 37. Kf2 {[%clk 0:01:26]}  Rb1 {[%clk 0:00:04]} 38. Rc2 {[%clk 0:01:26]}  Kg7 {[%clk 0:00:05]} 39. Bb5 {[%clk 0:01:24]}  Kh6 {[%clk 0:00:03]} 40. Ba4 {[%clk 0:01:24]}  Ra1 {[%clk 0:00:02]} 41. b3 {[%clk 0:01:24]}  Rd1 {[%clk 0:00:01]} 42. Rxc5 {[%clk 0:01:24]}  Rd4 {[%clk 0:00:01]} 43. Rxa5 {[%clk 0:01:23]}  g4 {[%clk 0:00:02]} 44. hxg4 {[%clk 0:01:23]}  Kg5 {[%clk 0:00:03]} 45. Rc5 {[%clk 0:01:23]}  Kxg4 {[%clk 0:00:03]} 46. Rc4 {[%clk 0:01:23]}  Rxc4 {[%clk 0:00:02]} 47. bxc4 {[%clk 0:01:24]}  Kf5 {[%clk 0:00:03]} 48. c5 {[%clk 0:01:24]}  Kxe5 {[%clk 0:00:04]} 49. Bb3 {[%clk 0:01:25]}  Kf6 {[%clk 0:00:03]} 50. c6 {[%clk 0:01:24]}  Ke7 {[%clk 0:00:04]} 51. Ba4 {[%clk 0:01:23]}  Kd6 {[%clk 0:00:04]} 52. g4 {[%clk 0:01:23]}  f6 {[%clk 0:00:04]} 53. Kf3 {[%clk 0:01:23]}  Kc7 {[%clk 0:00:03]} 54. Ke4 {[%clk 0:01:24]}  Kd6 {[%clk 0:00:03]} 55. Kd4 {[%clk 0:01:25]}  Kc7 {[%clk 0:00:03]} 56. Kc5 {[%clk 0:01:25]} 1-0


[Site "https://www.chess.com"]

[Event "Titled Tuesday Blitz March 29 Early 2022"]
[White "Sanchez, Robert"]
[Black "Maung, Maung Kyaw Zaw Hein"]
[WhiteFideId "2034360"]
[BlackFideId "13001698"]
[WhiteElo "2284"]
[BlackElo "1785"]
[Result "0-1"]
[Round "10"]
[TimeControl "180+1"]
[Date "2022.03.30"]
[WhiteClock "0:01:34"]
[BlackClock "0:01:03"]

1. e4 {[%clk 0:03:00]}  c6 {[%clk 0:02:59]} 2. Nf3 {[%clk 0:03:01]}  d5 {[%clk 0:03:00]} 3. Nc3 {[%clk 0:03:01]}  Bg4 {[%clk 0:02:59]} 4. h3 {[%clk 0:02:59]}  Bxf3 {[%clk 0:03:00]} 5. Qxf3 {[%clk 0:02:59]}  e6 {[%clk 0:03:00]} 6. d4 {[%clk 0:02:55]}  Nf6 {[%clk 0:03:00]} 7. e5 {[%clk 0:02:55]}  Nfd7 {[%clk 0:03:00]} 8. Bf4 {[%clk 0:02:54]}  a6 {[%clk 0:02:52]} 9. O-O-O {[%clk 0:02:54]}  c5 {[%clk 0:02:52]} 10. dxc5 {[%clk 0:02:53]}  Bxc5 {[%clk 0:02:49]} 11. g4 {[%clk 0:02:38]}  O-O {[%clk 0:02:46]} 12. Bd3 {[%clk 0:02:36]}  Nc6 {[%clk 0:02:45]} 13. Rhe1 {[%clk 0:02:35]}  Nb4 {[%clk 0:02:37]} 14. Kb1 {[%clk 0:02:25]}  Nxd3 {[%clk 0:02:36]} 15. cxd3 {[%clk 0:02:20]}  Rc8 {[%clk 0:02:33]} 16. d4 {[%clk 0:02:19]}  Bb4 {[%clk 0:02:24]} 17. Bd2 {[%clk 0:02:20]}  Nb6 {[%clk 0:02:22]} 18. Qd3 {[%clk 0:02:19]}  Nc4 {[%clk 0:02:19]} 19. Bc1 {[%clk 0:02:05]}  Qa5 {[%clk 0:02:03]} 20. f4 {[%clk 0:01:57]}  Rc6 {[%clk 0:02:00]} 21. f5 {[%clk 0:01:56]}  Rfc8 {[%clk 0:01:35]} 22. f6 {[%clk 0:01:46]}  Bxc3 {[%clk 0:01:12]} 23. bxc3 {[%clk 0:01:45]}  Na3+ {[%clk 0:01:09]} 24. Bxa3 {[%clk 0:01:42]}  Qxa3 {[%clk 0:01:09]} 25. Rc1 {[%clk 0:01:38]}  Rb6+ {[%clk 0:01:03]} 26. Ka1 {[%clk 0:01:34]}  Qb2# {[%clk 0:01:03]} 0-1


[Site "https://www.chess.com"]

[Event "Titled Tuesday Blitz March 29 Early 2022"]
[White "Sargsyan, Anna M."]
[Black "Shohat, Yotam"]
[WhiteFideId "13308130"]
[BlackFideId "2813955"]
[WhiteElo "2271"]
[BlackElo "2119"]
[Result "1-0"]
[Round "10"]
[TimeControl "180+1"]
[Date "2022.03.30"]
[WhiteClock "0:00:30"]
[BlackClock "0:00:01"]

1. d4 {[%clk 0:03:00]}  Nf6 {[%clk 0:02:59]} 2. c4 {[%clk 0:03:01]}  g6 {[%clk 0:02:59]} 3. g3 {[%clk 0:03:01]}  Bg7 {[%clk 0:02:58]} 4. Bg2 {[%clk 0:03:01]}  O-O {[%clk 0:02:59]} 5. Nc3 {[%clk 0:03:01]}  d6 {[%clk 0:02:59]} 6. Nf3 {[%clk 0:03:02]}  Nbd7 {[%clk 0:02:59]} 7. O-O {[%clk 0:03:02]}  e5 {[%clk 0:03:00]} 8. e4 {[%clk 0:03:02]}  c6 {[%clk 0:02:59]} 9. h3 {[%clk 0:03:02]}  Qb6 {[%clk 0:02:59]} 10. c5 {[%clk 0:03:01]}  dxc5 {[%clk 0:02:58]} 11. dxe5 {[%clk 0:03:02]}  Ne8 {[%clk 0:02:55]} 12. e6 {[%clk 0:03:03]}  fxe6 {[%clk 0:02:55]} 13. Ng5 {[%clk 0:03:03]}  Ne5 {[%clk 0:02:47]} 14. f4 {[%clk 0:03:03]}  c4+ {[%clk 0:02:46]} 15. Kh2 {[%clk 0:03:03]}  Nd3 {[%clk 0:02:46]} 16. e5 {[%clk 0:03:03]}  Nc7 {[%clk 0:02:40]} 17. Nce4 {[%clk 0:03:02]}  Nd5 {[%clk 0:02:31]} 18. Nd6 {[%clk 0:03:02]}  Nxb2 {[%clk 0:01:34]} 19. Qg4 {[%clk 0:02:41]}  Bd7 {[%clk 0:01:22]} 20. Bxb2 {[%clk 0:01:48]}  Qxb2 {[%clk 0:01:20]} 21. Nxc4 {[%clk 0:01:49]}  Qd4 {[%clk 0:01:09]} 22. Rac1 {[%clk 0:01:43]}  b5 {[%clk 0:01:02]} 23. Rfd1 {[%clk 0:01:15]}  Qf2 {[%clk 0:01:00]} 24. Rd2 {[%clk 0:01:11]}  Qc5 {[%clk 0:00:56]} 25. Ne4 {[%clk 0:01:08]}  Qb4 {[%clk 0:00:33]} 26. a3 {[%clk 0:01:04]}  Qb3 {[%clk 0:00:26]} 27. Nc5 {[%clk 0:00:58]}  bxc4 {[%clk 0:00:10]} 28. Nxb3 {[%clk 0:00:58]}  cxb3 {[%clk 0:00:11]} 29. Rb2 {[%clk 0:00:52]}  Rab8 {[%clk 0:00:10]} 30. Qf3 {[%clk 0:00:53]}  Bxe5 {[%clk 0:00:08]} 31. Rxb3 {[%clk 0:00:53]}  Rxb3 {[%clk 0:00:06]} 32. Qxb3 {[%clk 0:00:54]}  Nxf4 {[%clk 0:00:07]} 33. Re1 {[%clk 0:00:51]}  Nxg2 {[%clk 0:00:03]} 34. Rxe5 {[%clk 0:00:49]}  Rf2 {[%clk 0:00:03]} 35. Kg1 {[%clk 0:00:46]}  Rd2 {[%clk 0:00:03]} 36. Qb4 {[%clk 0:00:33]}  Ra2 {[%clk 0:00:02]} 37. Qe7 {[%clk 0:00:32]}  Ne1 {[%clk 0:00:01]} 38. Qd8+ {[%clk 0:00:30]} 1-0


[Site "https://www.chess.com"]